[Event "Titled Tuesday Blitz January 17 Late 2023"]
[White "Donskov, Anatoly"]
[Black "Michalski, Olaf"]
[WhiteFideId "24143413"]
[BlackFideId "1106740"]
[WhiteElo "2279"]
[BlackElo "2273"]
[Result "1-0"]
[Round "04"]
[TimeControl "180+2"]
[Date "2023.01.17"]
[WhiteClock "0:01:59"]
[BlackClock "0:00:20"]

1. e4 {[%clk 0:03:00]}  c5 {[%clk 0:02:55]} 2. Nf3 {[%clk 0:03:00]}  d6 {[%clk 0:02:54]} 3. d4 {[%clk 0:03:00]}  cxd4 {[%clk 0:02:54]} 4. Nxd4 {[%clk 0:03:01]}  Nf6 {[%clk 0:02:54]} 5. Nc3 {[%clk 0:03:01]}  a6 {[%clk 0:02:54]} 6. f4 {[%clk 0:03:01]}  e5 {[%clk 0:02:51]} 7. Nf3 {[%clk 0:03:01]}  Nc6 {[%clk 0:02:43]} 8. a4 {[%clk 0:03:01]}  Be7 {[%clk 0:02:43]} 9. Bd3 {[%clk 0:03:01]}  O-O {[%clk 0:02:42]} 10. O-O {[%clk 0:03:01]}  exf4 {[%clk 0:02:30]} 11. Kh1 {[%clk 0:03:01]}  Ne5 {[%clk 0:02:11]} 12. Bxf4 {[%clk 0:03:00]}  Bg4 {[%clk 0:01:59]} 13. Qd2 {[%clk 0:02:53]}  Nxf3 {[%clk 0:01:32]} 14. gxf3 {[%clk 0:02:54]}  Be6 {[%clk 0:01:32]} 15. Rg1 {[%clk 0:02:48]}  g6 {[%clk 0:01:32]} 16. Ne2 {[%clk 0:02:38]}  Nd7 {[%clk 0:01:18]} 17. Bh6 {[%clk 0:02:20]}  Re8 {[%clk 0:01:18]} 18. f4 {[%clk 0:02:20]}  Qc7 {[%clk 0:00:56]} 19. b3 {[%clk 0:02:17]}  Nc5 {[%clk 0:00:51]} 20. Qc3 {[%clk 0:02:00]}  Bf8 {[%clk 0:00:19]} 21. Bxf8 {[%clk 0:01:59]}  Rxf8 {[%clk 0:00:20]} 22. b4 {[%clk 0:01:59]} 1-0


[Site "https://www.chess.com"]

[Event "Titled Tuesday Blitz January 17 Late 2023"]
[White "Garcia Almaguer, Juan Manuel"]
[Black "Curtis, John"]
[WhiteFideId "5110491"]
[BlackFideId "3200256"]
[WhiteElo "2090"]
[BlackElo "2292"]
[Result "1-0"]
[Round "04"]
[TimeControl "180+2"]
[Date "2023.01.17"]
[WhiteClock "0:00:30"]
[BlackClock "0:00:08"]

1. e4 {[%clk 0:03:00]}  e6 {[%clk 0:02:57]} 2. d3 {[%clk 0:02:53]}  d5 {[%clk 0:02:54]} 3. Nd2 {[%clk 0:02:54]}  Ne7 {[%clk 0:02:47]} 4. g3 {[%clk 0:02:51]}  b6 {[%clk 0:02:47]} 5. Bg2 {[%clk 0:02:51]}  Bb7 {[%clk 0:02:48]} 6. Ne2 {[%clk 0:02:51]}  Nd7 {[%clk 0:02:47]} 7. a4 {[%clk 0:02:49]}  a5 {[%clk 0:02:42]} 8. h4 {[%clk 0:02:36]}  h5 {[%clk 0:02:38]} 9. Nf4 {[%clk 0:02:34]}  Nf6 {[%clk 0:02:30]} 10. e5 {[%clk 0:02:26]}  Nd7 {[%clk 0:02:29]} 11. d4 {[%clk 0:02:24]}  g6 {[%clk 0:02:29]} 12. c3 {[%clk 0:02:19]}  c5 {[%clk 0:02:28]} 13. Nf3 {[%clk 0:02:19]}  Ba6 {[%clk 0:02:24]} 14. Ng5 {[%clk 0:02:14]}  cxd4 {[%clk 0:02:16]} 15. cxd4 {[%clk 0:01:49]}  Nf5 {[%clk 0:02:16]} 16. Nxd5 {[%clk 0:01:24]}  exd5 {[%clk 0:02:13]} 17. Bxd5 {[%clk 0:01:25]}  Nxe5 {[%clk 0:01:48]} 18. Qb3 {[%clk 0:01:12]}  Bb4+ {[%clk 0:01:36]} 19. Bd2 {[%clk 0:01:11]}  Nxd4 {[%clk 0:01:31]} 20. Bxf7+ {[%clk 0:01:10]}  Kf8 {[%clk 0:01:26]} 21. Bxb4+ {[%clk 0:01:09]}  axb4 {[%clk 0:01:23]} 22. Qxb4+ {[%clk 0:01:10]}  Kg7 {[%clk 0:01:21]} 23. O-O-O {[%clk 0:00:53]}  Ne2+ {[%clk 0:00:33]} 24. Kb1 {[%clk 0:00:50]}  Bd3+ {[%clk 0:00:33]} 25. Ka1 {[%clk 0:00:42]}  Nxf7 {[%clk 0:00:30]} 26. Ne6+ {[%clk 0:00:41]}  Kh7 {[%clk 0:00:27]} 27. Nxd8 {[%clk 0:00:39]}  Rhxd8 {[%clk 0:00:26]} 28. Rhe1 {[%clk 0:00:34]}  Bf5 {[%clk 0:00:20]} 29. Rxd8 {[%clk 0:00:32]}  Rxd8 {[%clk 0:00:20]} 30. Rxe2 {[%clk 0:00:32]}  Rd1+ {[%clk 0:00:19]} 31. Ka2 {[%clk 0:00:32]}  Bb1+ {[%clk 0:00:18]} 32. Ka3 {[%clk 0:00:33]}  Bd3 {[%clk 0:00:09]} 33. Re7 {[%clk 0:00:30]}  Ra1+ {[%clk 0:00:08]} 34. Kb3 {[%clk 0:00:30]} 1-0


[Site "https://www.chess.com"]

[Event "Titled Tuesday Blitz January 17 Late 2023"]
[White "Souza, Gustavo Horokoski De"]
[Black "Sanchez, Robert"]
[WhiteFideId "2146584"]
[BlackFideId "2034360"]
[WhiteElo "1943"]
[BlackElo "1966"]
[Result "0-1"]
[Round "04"]
[TimeControl "180+2"]
[Date "2023.01.17"]
[WhiteClock "0:00:03"]
[BlackClock "0:00:58"]

1. d4 {[%clk 0:02:55]}  Nf6 {[%clk 0:02:59]} 2. c4 {[%clk 0:02:54]}  e6 {[%clk 0:03:00]} 3. Nc3 {[%clk 0:02:53]}  Bb4 {[%clk 0:03:00]} 4. e3 {[%clk 0:02:53]}  b6 {[%clk 0:02:59]} 5. Ne2 {[%clk 0:02:52]}  Ba6 {[%clk 0:02:59]} 6. a3 {[%clk 0:02:48]}  Bxc3+ {[%clk 0:02:59]} 7. Nxc3 {[%clk 0:02:49]}  d5 {[%clk 0:02:59]} 8. cxd5 {[%clk 0:02:17]}  Bxf1 {[%clk 0:02:58]} 9. Kxf1 {[%clk 0:02:18]}  Nxd5 {[%clk 0:02:56]} 10. g3 {[%clk 0:02:15]}  O-O {[%clk 0:02:53]} 11. Qf3 {[%clk 0:02:12]}  c6 {[%clk 0:02:44]} 12. Nxd5 {[%clk 0:02:10]}  cxd5 {[%clk 0:02:43]} 13. Bd2 {[%clk 0:02:07]}  Nc6 {[%clk 0:02:44]} 14. Kg2 {[%clk 0:02:06]}  e5 {[%clk 0:02:37]} 15. Rac1 {[%clk 0:02:01]}  e4 {[%clk 0:02:35]} 16. Qg4 {[%clk 0:02:00]}  f5 {[%clk 0:02:33]} 17. Qf4 {[%clk 0:01:57]}  Qd7 {[%clk 0:02:29]} 18. Bb4 {[%clk 0:01:43]}  Rf6 {[%clk 0:02:20]} 19. h4 {[%clk 0:01:35]}  a5 {[%clk 0:02:14]} 20. Bd2 {[%clk 0:01:28]}  Rg6 {[%clk 0:02:14]} 21. Rxc6 {[%clk 0:00:54]}  Rxc6 {[%clk 0:02:07]} 22. h5 {[%clk 0:00:47]}  h6 {[%clk 0:02:05]} 23. Bc3 {[%clk 0:00:42]}  Rf8 {[%clk 0:01:56]} 24. Rh4 {[%clk 0:00:34]}  Qd6 {[%clk 0:01:53]} 25. Qxd6 {[%clk 0:00:29]}  Rxd6 {[%clk 0:01:54]} 26. Rh1 {[%clk 0:00:27]}  Rc8 {[%clk 0:01:53]} 27. Rf1 {[%clk 0:00:25]}  Rdc6 {[%clk 0:01:48]} 28. f3 {[%clk 0:00:24]}  Rf8 {[%clk 0:01:39]} 29. f4 {[%clk 0:00:18]}  Rfc8 {[%clk 0:01:39]} 30. g4 {[%clk 0:00:16]}  fxg4 {[%clk 0:01:34]} 31. Kg3 {[%clk 0:00:16]}  Rxc3 {[%clk 0:01:33]} 32. bxc3 {[%clk 0:00:17]}  Rxc3 {[%clk 0:01:33]} 33. Kxg4 {[%clk 0:00:16]}  a4 {[%clk 0:01:29]} 34. Kf5 {[%clk 0:00:10]}  Rxa3 {[%clk 0:01:28]} 35. Rc1 {[%clk 0:00:10]}  Rb3 {[%clk 0:01:18]} 36. Kg6 {[%clk 0:00:05]}  Kf8 {[%clk 0:01:18]} 37. Rc8+ {[%clk 0:00:05]}  Ke7 {[%clk 0:01:18]} 38. Rc7+ {[%clk 0:00:06]}  Kd6 {[%clk 0:01:19]} 39. Rxg7 {[%clk 0:00:06]}  a3 {[%clk 0:01:19]} 40. Kxh6 {[%clk 0:00:05]}  b5 {[%clk 0:01:13]} 41. Rg6+ {[%clk 0:00:01]}  Kc7 {[%clk 0:01:12]} 42. Ra6 {[%clk 0:00:01]}  Kb7 {[%clk 0:01:11]} 43. Ra5 {[%clk 0:00:02]}  b4 {[%clk 0:01:10]} 44. Kg6 {[%clk 0:00:02]}  Rxe3 {[%clk 0:01:10]} 45. Rxd5 {[%clk 0:00:02]}  Kb6 {[%clk 0:01:08]} 46. Rd6+ {[%clk 0:00:02]}  Kb5 {[%clk 0:01:08]} 47. Rd5+ {[%clk 0:00:03]}  Ka4 {[%clk 0:01:04]} 48. h6 {[%clk 0:00:03]}  a2 {[%clk 0:01:03]} 49. Rd7 {[%clk 0:00:03]}  Rg3+ {[%clk 0:01:02]} 50. Kf5 {[%clk 0:00:03]}  Rh3 {[%clk 0:01:01]} 51. Kg6 {[%clk 0:00:03]}  Kb3 {[%clk 0:00:59]} 52. Ra7 {[%clk 0:00:03]}  e3 {[%clk 0:00:59]} 53. h7 {[%clk 0:00:03]}  e2 {[%clk 0:00:59]} 54. h8=Q {[%clk 0:00:02]}  Rxh8 {[%clk 0:00:58]} 55. f5 {[%clk 0:00:03]}  e1=Q {[%clk 0:00:58]} 0-1


[Site "https://www.chess.com"]

[Event "Titled Tuesday Blitz January 17 Late 2023"]
[White "Lindholt, Malik"]
[Black "Danielyan, Vahe"]
[WhiteFideId "1404490"]
[BlackFideId "13304828"]
[WhiteElo "2177"]
[BlackElo "2346"]
[Result "0-1"]
[Round "04"]
[TimeControl "180+2"]
[Date "2023.01.17"]
[WhiteClock "0:01:26"]
[BlackClock "0:02:17"]

1. e4 {[%clk 0:02:59]}  c5 {[%clk 0:02:58]} 2. Nf3 {[%clk 0:02:59]}  d6 {[%clk 0:02:58]} 3. d4 {[%clk 0:02:59]}  cxd4 {[%clk 0:02:59]} 4. Nxd4 {[%clk 0:02:59]}  Nc6 {[%clk 0:02:59]} 5. Nc3 {[%clk 0:02:59]}  Bd7 {[%clk 0:02:59]} 6. Be3 {[%clk 0:02:59]}  Nf6 {[%clk 0:02:58]} 7. f3 {[%clk 0:02:59]}  Rc8 {[%clk 0:02:58]} 8. Qd2 {[%clk 0:02:59]}  a6 {[%clk 0:02:58]} 9. g4 {[%clk 0:02:56]}  g6 {[%clk 0:02:57]} 10. O-O-O {[%clk 0:02:56]}  Bg7 {[%clk 0:02:57]} 11. h4 {[%clk 0:02:54]}  h5 {[%clk 0:02:51]} 12. gxh5 {[%clk 0:02:52]}  Nxh5 {[%clk 0:02:51]} 13. Bh3 {[%clk 0:02:47]}  Bxh3 {[%clk 0:02:50]} 14. Rxh3 {[%clk 0:02:47]}  Ne5 {[%clk 0:02:51]} 15. Qe2 {[%clk 0:02:34]}  Nc4 {[%clk 0:02:50]} 16. Bg1 {[%clk 0:02:35]}  Qb6 {[%clk 0:02:49]} 17. Nb3 {[%clk 0:02:32]}  Qb4 {[%clk 0:02:49]} 18. Bd4 {[%clk 0:02:26]}  Nxb2 {[%clk 0:02:45]} 19. Bxg7 {[%clk 0:02:24]}  Nxg7 {[%clk 0:02:46]} 20. Kxb2 {[%clk 0:02:21]}  Qxc3+ {[%clk 0:02:45]} 21. Kb1 {[%clk 0:02:21]}  Ne6 {[%clk 0:02:44]} 22. Rd3 {[%clk 0:02:18]}  Qe5 {[%clk 0:02:43]} 23. Rd5 {[%clk 0:02:15]}  Qc3 {[%clk 0:02:37]} 24. Qh2 {[%clk 0:01:54]}  b5 {[%clk 0:02:33]} 25. h5 {[%clk 0:01:54]}  gxh5 {[%clk 0:02:33]} 26. Rdxh5 {[%clk 0:01:53]}  Rxh5 {[%clk 0:02:34]} 27. Rxh5 {[%clk 0:01:52]}  Kd7 {[%clk 0:02:34]} 28. f4 {[%clk 0:01:41]}  Qe1+ {[%clk 0:02:24]} 29. Kb2 {[%clk 0:01:42]}  Qxe4 {[%clk 0:02:25]} 30. f5 {[%clk 0:01:37]}  Nc5 {[%clk 0:02:25]} 31. f6 {[%clk 0:01:33]}  Na4+ {[%clk 0:02:23]} 32. Ka3 {[%clk 0:01:31]}  Rxc2 {[%clk 0:02:18]} 33. fxe7 {[%clk 0:01:26]}  Rxh2 {[%clk 0:02:17]} 0-1


[Site "https://www.chess.com"]

[Event "Titled Tuesday Blitz January 17 Late 2023"]
[White "Gardezi, Arsal"]
[Black "Ovezdurdyyeva, Jemal"]
[WhiteFideId "30949521"]
[BlackFideId "14001888"]
[WhiteElo "2093"]
[BlackElo "2078"]
[Result "1-0"]
[Round "04"]
[TimeControl "180+2"]
[Date "2023.01.17"]
[WhiteClock "0:00:25"]
[BlackClock "0:00:20"]

1. g3 {[%clk 0:02:59]}  Nf6 {[%clk 0:02:59]} 2. Bg2 {[%clk 0:02:59]}  e6 {[%clk 0:02:58]} 3. c4 {[%clk 0:03:00]}  d5 {[%clk 0:02:57]} 4. cxd5 {[%clk 0:03:00]}  exd5 {[%clk 0:02:56]} 5. d4 {[%clk 0:03:01]}  Be7 {[%clk 0:02:47]} 6. Nc3 {[%clk 0:02:56]}  O-O {[%clk 0:02:46]} 7. Nf3 {[%clk 0:02:55]}  Bf5 {[%clk 0:02:37]} 8. O-O {[%clk 0:02:55]}  Qc8 {[%clk 0:02:35]} 9. Ne5 {[%clk 0:02:52]}  Bh3 {[%clk 0:02:32]} 10. Qb3 {[%clk 0:02:45]}  Bxg2 {[%clk 0:02:28]} 11. Kxg2 {[%clk 0:02:44]}  c6 {[%clk 0:02:28]} 12. Bg5 {[%clk 0:02:42]}  Nbd7 {[%clk 0:02:24]} 13. Rac1 {[%clk 0:02:41]}  h6 {[%clk 0:02:19]} 14. Bxf6 {[%clk 0:02:07]}  Nxf6 {[%clk 0:02:15]} 15. Rfe1 {[%clk 0:02:02]}  Rb8 {[%clk 0:02:05]} 16. Qa4 {[%clk 0:01:58]}  a6 {[%clk 0:02:02]} 17. e4 {[%clk 0:01:56]}  dxe4 {[%clk 0:01:57]} 18. Nxe4 {[%clk 0:01:57]}  Qf5 {[%clk 0:01:52]} 19. Nd2 {[%clk 0:01:45]}  Nd5 {[%clk 0:01:38]} 20. Ndf3 {[%clk 0:01:44]}  g5 {[%clk 0:01:34]} 21. Qc2 {[%clk 0:00:58]}  Qxc2 {[%clk 0:01:07]} 22. Rxc2 {[%clk 0:00:58]}  Rbd8 {[%clk 0:01:07]} 23. h4 {[%clk 0:00:48]}  Kg7 {[%clk 0:00:53]} 24. h5 {[%clk 0:00:33]}  Bd6 {[%clk 0:00:40]} 25. a3 {[%clk 0:00:31]}  Rfe8 {[%clk 0:00:33]} 26. Rce2 {[%clk 0:00:31]}  Re6 {[%clk 0:00:30]} 27. Nc4 {[%clk 0:00:25]}  Rde8 {[%clk 0:00:19]} 28. Rxe6 {[%clk 0:00:24]}  Rxe6 {[%clk 0:00:19]} 29. Rxe6 {[%clk 0:00:24]}  fxe6 {[%clk 0:00:20]} 30. Nxd6 {[%clk 0:00:25]} 1-0


[Site "https://www.chess.com"]

[Event "Titled Tuesday Blitz January 17 Late 2023"]
[White "ritanovikova"]
[Black "Mazurkiewicz, Michal"]
[BlackFideId "1124943"]
[WhiteElo "2148"]
[BlackElo "2145"]
[Result "0-1"]
[Round "04"]
[TimeControl "180+2"]
[Date "2023.01.17"]
[WhiteClock "0:00:01"]
[BlackClock "0:00:22"]

1. d4 {[%clk 0:03:00]}  Nf6 {[%clk 0:02:57]} 2. Bf4 {[%clk 0:02:59]}  g6 {[%clk 0:02:57]} 3. Nf3 {[%clk 0:02:57]}  Bg7 {[%clk 0:02:57]} 4. Nbd2 {[%clk 0:02:55]}  d5 {[%clk 0:02:56]} 5. e3 {[%clk 0:02:53]}  O-O {[%clk 0:02:56]} 6. h3 {[%clk 0:02:52]}  c5 {[%clk 0:02:51]} 7. c3 {[%clk 0:02:50]}  Nc6 {[%clk 0:02:50]} 8. Be2 {[%clk 0:02:49]}  Qb6 {[%clk 0:02:39]} 9. Qc1 {[%clk 0:02:37]}  Bf5 {[%clk 0:02:34]} 10. g4 {[%clk 0:02:34]}  Be4 {[%clk 0:02:33]} 11. Nxe4 {[%clk 0:02:31]}  Nxe4 {[%clk 0:02:34]} 12. Nd2 {[%clk 0:02:25]}  e5 {[%clk 0:02:28]} 13. Nxe4 {[%clk 0:02:20]}  dxe4 {[%clk 0:02:26]} 14. dxe5 {[%clk 0:02:15]}  Nxe5 {[%clk 0:02:27]} 15. Bxe5 {[%clk 0:02:09]}  Bxe5 {[%clk 0:02:26]} 16. Qc2 {[%clk 0:02:09]}  Rad8 {[%clk 0:02:17]} 17. O-O {[%clk 0:01:55]}  Rfe8 {[%clk 0:02:16]} 18. Rad1 {[%clk 0:01:52]}  Bb8 {[%clk 0:02:16]} 19. Rxd8 {[%clk 0:01:41]}  Qxd8 {[%clk 0:02:17]} 20. Kg2 {[%clk 0:01:16]}  Qd6 {[%clk 0:02:00]} 21. Rh1 {[%clk 0:01:16]}  b6 {[%clk 0:01:50]} 22. Bc4 {[%clk 0:01:14]}  Kg7 {[%clk 0:01:49]} 23. Qb3 {[%clk 0:01:11]}  Re7 {[%clk 0:01:49]} 24. Qd1 {[%clk 0:01:08]}  Qe5 {[%clk 0:01:43]} 25. Qd5 {[%clk 0:01:05]}  Qc7 {[%clk 0:01:38]} 26. g5 {[%clk 0:00:43]}  Re5 {[%clk 0:01:35]} 27. Qd2 {[%clk 0:00:38]}  Rxg5+ {[%clk 0:01:34]} 28. Kf1 {[%clk 0:00:38]}  Rf5 {[%clk 0:01:25]} 29. Ke1 {[%clk 0:00:34]}  Rf6 {[%clk 0:01:18]} 30. Ke2 {[%clk 0:00:31]}  Qe5 {[%clk 0:01:16]} 31. Rf1 {[%clk 0:00:22]}  Rd6 {[%clk 0:01:10]} 32. Qc2 {[%clk 0:00:20]}  Qh5+ {[%clk 0:01:06]} 33. Ke1 {[%clk 0:00:19]}  f5 {[%clk 0:01:01]} 34. Be2 {[%clk 0:00:17]}  Qxh3 {[%clk 0:01:01]} 35. Qa4 {[%clk 0:00:12]}  Qh4 {[%clk 0:00:56]} 36. Qe8 {[%clk 0:00:10]}  Rd8 {[%clk 0:00:56]} 37. Qe6 {[%clk 0:00:10]}  Qf6 {[%clk 0:00:53]} 38. Qb3 {[%clk 0:00:08]}  Qd6 {[%clk 0:00:52]} 39. Qc2 {[%clk 0:00:08]}  b5 {[%clk 0:00:50]} 40. Rh1 {[%clk 0:00:08]}  c4 {[%clk 0:00:49]} 41. Kf1 {[%clk 0:00:05]}  Qd2 {[%clk 0:00:40]} 42. Qb1 {[%clk 0:00:04]}  a5 {[%clk 0:00:38]} 43. a4 {[%clk 0:00:02]}  bxa4 {[%clk 0:00:27]} 44. Bxc4 {[%clk 0:00:02]}  Qd1+ {[%clk 0:00:27]} 45. Qxd1 {[%clk 0:00:02]}  Rxd1+ {[%clk 0:00:26]} 46. Kg2 {[%clk 0:00:03]}  Rxh1 {[%clk 0:00:25]} 47. Kxh1 {[%clk 0:00:03]}  Bd6 {[%clk 0:00:25]} 48. Bb5 {[%clk 0:00:03]}  a3 {[%clk 0:00:25]} 49. bxa3 {[%clk 0:00:02]}  Bxa3 {[%clk 0:00:26]} 50. Ba4 {[%clk 0:00:02]}  Bc5 {[%clk 0:00:24]} 51. c4 {[%clk 0:00:02]}  g5 {[%clk 0:00:25]} 52. Kg2 {[%clk 0:00:02]}  Kf6 {[%clk 0:00:24]} 53. Bd7 {[%clk 0:00:03]}  Ke5 {[%clk 0:00:24]} 54. Bb5 {[%clk 0:00:03]}  f4 {[%clk 0:00:24]} 55. exf4+ {[%clk 0:00:03]}  gxf4 {[%clk 0:00:24]} 56. Kf1 {[%clk 0:00:03]}  f3 {[%clk 0:00:24]} 57. Ke1 {[%clk 0:00:03]}  h5 {[%clk 0:00:24]} 58. Kf1 {[%clk 0:00:03]}  h4 {[%clk 0:00:24]} 59. Kg1 {[%clk 0:00:04]}  h3 {[%clk 0:00:22]} 60. Bd7 {[%clk 0:00:03]}  h2+ {[%clk 0:00:21]} 61. Kxh2 {[%clk 0:00:01]}  Bxf2 {[%clk 0:00:22]} 0-1


[Site "https://www.chess.com"]

[Event "Titled Tuesday Blitz January 17 Late 2023"]
[White "Guevara Sanchez, Erick Marvin"]
[Black "Osmak, Yuliia"]
[WhiteFideId "6700136"]
[BlackFideId "14101602"]
[WhiteElo "2073"]
[BlackElo "2440"]
[Result "0-1"]
[Round "04"]
[TimeControl "180+2"]
[Date "2023.01.17"]
[WhiteClock "0:00:02"]
[BlackClock "0:00:15"]

1. e4 {[%clk 0:03:00]}  c6 {[%clk 0:02:55]} 2. d4 {[%clk 0:03:00]}  d5 {[%clk 0:02:52]} 3. exd5 {[%clk 0:03:01]}  cxd5 {[%clk 0:02:52]} 4. c4 {[%clk 0:03:01]}  Nf6 {[%clk 0:02:51]} 5. Nc3 {[%clk 0:03:01]}  Nc6 {[%clk 0:02:52]} 6. Nf3 {[%clk 0:03:01]}  e6 {[%clk 0:02:52]} 7. c5 {[%clk 0:03:01]}  g6 {[%clk 0:02:47]} 8. a3 {[%clk 0:02:56]}  Bg7 {[%clk 0:02:46]} 9. b4 {[%clk 0:02:56]}  O-O {[%clk 0:02:39]} 10. Be2 {[%clk 0:02:52]}  Re8 {[%clk 0:02:39]} 11. b5 {[%clk 0:02:37]}  Na5 {[%clk 0:02:38]} 12. Bf4 {[%clk 0:02:36]}  Ne4 {[%clk 0:02:37]} 13. Qc2 {[%clk 0:02:23]}  f5 {[%clk 0:02:33]} 14. O-O {[%clk 0:02:15]}  a6 {[%clk 0:02:31]} 15. a4 {[%clk 0:02:05]}  Bd7 {[%clk 0:02:31]} 16. Nxe4 {[%clk 0:01:40]}  dxe4 {[%clk 0:02:22]} 17. Ne5 {[%clk 0:01:38]}  g5 {[%clk 0:02:21]} 18. Bd2 {[%clk 0:01:29]}  Bxe5 {[%clk 0:02:13]} 19. dxe5 {[%clk 0:01:27]}  h6 {[%clk 0:02:09]} 20. Qc3 {[%clk 0:01:21]}  b6 {[%clk 0:01:59]} 21. cxb6 {[%clk 0:01:06]}  axb5 {[%clk 0:01:53]} 22. axb5 {[%clk 0:01:05]}  Nb7 {[%clk 0:01:53]} 23. Qc7 {[%clk 0:01:01]}  Rxa1 {[%clk 0:01:41]} 24. Rxa1 {[%clk 0:00:53]}  Bc8 {[%clk 0:01:41]} 25. Bb4 {[%clk 0:00:44]}  Qd4 {[%clk 0:01:40]} 26. Qc3 {[%clk 0:00:24]}  Qxb6 {[%clk 0:01:31]} 27. Ra6 {[%clk 0:00:23]}  Qd8 {[%clk 0:01:28]} 28. Rc6 {[%clk 0:00:21]}  f4 {[%clk 0:00:49]} 29. h3 {[%clk 0:00:16]}  f3 {[%clk 0:00:44]} 30. gxf3 {[%clk 0:00:15]}  exf3 {[%clk 0:00:43]} 31. Bxf3 {[%clk 0:00:15]}  Bd7 {[%clk 0:00:43]} 32. Rc7 {[%clk 0:00:15]}  Bxb5 {[%clk 0:00:37]} 33. Rxb7 {[%clk 0:00:11]}  Bd3 {[%clk 0:00:36]} 34. Bh5 {[%clk 0:00:06]}  Be4 {[%clk 0:00:29]} 35. Bxe8 {[%clk 0:00:04]}  Bxb7 {[%clk 0:00:24]} 36. Ba4 {[%clk 0:00:02]}  Qd5 {[%clk 0:00:21]} 37. Kf1 {[%clk 0:00:02]}  Ba6+ {[%clk 0:00:16]} 38. Ke1 {[%clk 0:00:02]}  Qe4+ {[%clk 0:00:15]} 39. Qe3 {[%clk 0:00:02]}  Qxb4+ {[%clk 0:00:15]} 0-1


[Site "https://www.chess.com"]

[Event "Titled Tuesday Blitz January 17 Late 2023"]
[White "Gavilan Diaz, Mario"]
[Black "Kohler, Aran"]
[WhiteFideId "2260905"]
[BlackFideId "1002856"]
[WhiteElo "2271"]
[BlackElo "2010"]
[Result "1-0"]
[Round "04"]
[TimeControl "180+2"]
[Date "2023.01.17"]
[WhiteClock "0:00:07"]
[BlackClock "0:00:02"]

1. d4 {[%clk 0:02:57]}  Nf6 {[%clk 0:02:58]} 2. c4 {[%clk 0:02:57]}  c5 {[%clk 0:02:58]} 3. d5 {[%clk 0:02:57]}  b5 {[%clk 0:02:58]} 4. Qc2 {[%clk 0:02:56]}  g6 {[%clk 0:02:49]} 5. b3 {[%clk 0:02:54]}  Bg7 {[%clk 0:02:41]} 6. Bb2 {[%clk 0:02:54]}  O-O {[%clk 0:02:39]} 7. e4 {[%clk 0:02:54]}  bxc4 {[%clk 0:02:32]} 8. bxc4 {[%clk 0:02:53]}  d6 {[%clk 0:02:32]} 9. Nd2 {[%clk 0:02:51]}  Nbd7 {[%clk 0:02:32]} 10. Ngf3 {[%clk 0:02:50]}  Rb8 {[%clk 0:02:29]} 11. Bc3 {[%clk 0:02:50]}  Ng4 {[%clk 0:02:25]} 12. h3 {[%clk 0:02:44]}  Nge5 {[%clk 0:02:18]} 13. Nxe5 {[%clk 0:02:43]}  Bxe5 {[%clk 0:02:11]} 14. Be2 {[%clk 0:02:37]}  Bxc3 {[%clk 0:01:38]} 15. Qxc3 {[%clk 0:02:38]}  e5 {[%clk 0:01:36]} 16. O-O {[%clk 0:02:31]}  f5 {[%clk 0:01:26]} 17. f4 {[%clk 0:02:10]}  exf4 {[%clk 0:01:20]} 18. exf5 {[%clk 0:02:08]}  Qf6 {[%clk 0:01:02]} 19. Qxf6 {[%clk 0:01:41]}  Rxf6 {[%clk 0:01:02]} 20. fxg6 {[%clk 0:01:22]}  hxg6 {[%clk 0:01:01]} 21. Bg4 {[%clk 0:01:21]}  Ne5 {[%clk 0:00:58]} 22. Ne4 {[%clk 0:01:18]}  Rf8 {[%clk 0:00:47]} 23. Bxc8 {[%clk 0:01:16]}  Rbxc8 {[%clk 0:00:47]} 24. Nxd6 {[%clk 0:01:16]}  Rb8 {[%clk 0:00:41]} 25. Rae1 {[%clk 0:01:10]}  Nd3 {[%clk 0:00:35]} 26. Re7 {[%clk 0:01:08]}  a5 {[%clk 0:00:30]} 27. Ne4 {[%clk 0:00:59]}  Rb2 {[%clk 0:00:28]} 28. Rd1 {[%clk 0:00:51]}  Nb4 {[%clk 0:00:25]} 29. Nxc5 {[%clk 0:00:49]}  Rxa2 {[%clk 0:00:24]} 30. Ne6 {[%clk 0:00:49]}  Rf6 {[%clk 0:00:24]} 31. Rf1 {[%clk 0:00:24]}  Rc2 {[%clk 0:00:20]} 32. Rxf4 {[%clk 0:00:22]}  Rxf4 {[%clk 0:00:19]} 33. Nxf4 {[%clk 0:00:23]}  Rxc4 {[%clk 0:00:19]} 34. Nxg6 {[%clk 0:00:19]}  Nxd5 {[%clk 0:00:18]} 35. Re5 {[%clk 0:00:19]}  Nc3 {[%clk 0:00:12]} 36. Rxa5 {[%clk 0:00:19]}  Kg7 {[%clk 0:00:11]} 37. Ne5 {[%clk 0:00:18]}  Re4 {[%clk 0:00:10]} 38. Nf3 {[%clk 0:00:19]}  Re2 {[%clk 0:00:08]} 39. Kh2 {[%clk 0:00:18]}  Ne4 {[%clk 0:00:09]} 40. Re5 {[%clk 0:00:17]}  Nc3 {[%clk 0:00:08]} 41. Rc5 {[%clk 0:00:15]}  Ne4 {[%clk 0:00:07]} 42. Rc4 {[%clk 0:00:14]}  Kf6 {[%clk 0:00:06]} 43. h4 {[%clk 0:00:13]}  Nd6 {[%clk 0:00:06]} 44. Rf4+ {[%clk 0:00:12]}  Ke6 {[%clk 0:00:05]} 45. Ng5+ {[%clk 0:00:11]}  Ke5 {[%clk 0:00:05]} 46. Rf8 {[%clk 0:00:10]}  Ra2 {[%clk 0:00:03]} 47. Kh3 {[%clk 0:00:10]}  Nf5 {[%clk 0:00:03]} 48. Nf3+ {[%clk 0:00:07]}  Ke6 {[%clk 0:00:02]} 49. Re8+ {[%clk 0:00:07]}  Kf7 {[%clk 0:00:02]} 50. Re5 {[%clk 0:00:07]} 1-0


[Site "https://www.chess.com"]